Cogmind - Beta 13 @@@ ROGUE MODE // 2024.03.31 @ 17:18:37 Player: opdo Result: Destroyed by G-47 Trooper with Particle Gun Performance ------------- Evolutions (2) 1000 Regions Visited (4) 800 Robots Destroyed (42) 210 Value Destroyed (1053) 1053 Prototype IDs (4) 80 Alien Tech Used (0) 0 Bonus (0) 0 TOTAL SCORE: 3143 Bonus ------- None Cogmind --------- Core Integrity 0/550 Matter 6/300 Energy 100/100 System Corruption 1% Temperature Cool (9) Movement Hovering (180) Ox2 Location -8/Materials Parts ------- > --- POWER (1) -------- (None) > --- PROPULSION (3) --- Improved Hover Unit > --- UTILITY (5) ------ Disposable Heat Sink Medium Storage Unit Improved Terrain Scan Processor > --- WEAPON (2) ------- Mini Assault Cannon Mini Assault Cannon > --- INVENTORY (10) --- Aluminum Leg Large Storage Unit Advanced Visual Processing Unit Improved Signal Interpreter Improved Terrain Scan Processor Matter Filter Improved EM Shotgun Improved Assault Rifle Peak State ------------ > --- POWER ------------ Heavy Ion Engine > --- PROPULSION ------- Aluminum Leg Aluminum Leg Aluminum Leg > --- UTILITY ---------- Disposable Heat Sink Medium Storage Unit Improved Terrain Scanner Improved Terrain Scan Processor Targeting Computer > --- WEAPON ----------- Mini Assault Cannon Mini Assault Cannon > --- INVENTORY -------- Heavy Ion Engine Light Nuclear Core Large Storage Unit Visual Processing Unit Sensor Array Improved Terrain Scan Processor Matter Filter Improved EM Shotgun Improved EM Shotgun Advanced Beam Cannon [Rating: 28] Favorites ----------- Power Heavy Ion Engine Engine Heavy Ion Engine Power Core Light Nuclear Core Propulsion Aluminum Leg Leg Aluminum Leg Hover Unit Improved Hover Unit Flight Unit Flight Unit Utility Targeting Computer Device Disposable Heat Sink Storage Medium Storage Unit Processor Targeting Computer Weapon Improved EM Shotgun Energy Gun Improved EM Shotgun Ballistic Gun Assault Rifle Ballistic Cannon Mini Assault Cannon Build | -11 -10 -9 -9 -8 ------- Run | Yrd Mat Mat Min Mat Slots Evolved 4 | . . 2 . 2 Power . | . . . . . Propulsion 1 | . . . . 1 Utility 3 | . . 2 . 1 Weapon . | . . . . . Parts Attached 37 | 6 3 8 . 20 Power 4 | 1 . 1 . 2 Engine 3 | 1 . 1 . 1 Core 1 | . . . . 1 Reactor . | . . . . . Propulsion 12 | 2 1 . . 9 Treads . | . . . . . Leg 8 | 2 1 . . 5 Wheel . | . . . . . Hover 1 | . . . . 1 Flight 3 | . . . . 3 Utility 9 | 1 2 2 . 4 Device 5 | . . 2 . 3 Storage 2 | 1 1 . . . Processor 2 | . 1 . . 1 Hackware . | . . . . . Protection . | . . . . . Artifact . | . . . . . Weapon 12 | 2 . 5 . 5 Energy Gun 7 | 1 . 4 . 2 Energy Cannon . | . . . . . Ballistic Gun 2 | 1 . 1 . . Ballistic Cannon 3 | . . . . 3 Launcher . | . . . . . Special Weapon . | . . . . . Impact Weapon . | . . . . . Slashing Weapon . | . . . . . Piercing Weapon . | . . . . . Special Melee Weapon . | . . . . . Unidentified Prototypes 3 | . . 2 . 1 Parts Lost 17 | . . 1 . 16 Power 2 | . . . . 2 Propulsion 8 | . . . . 8 Utility 4 | . . . . 4 Weapon 3 | . . 1 . 2 Highest Loss Streak 5 | . . 1 . 5 To Critical Strikes . | . . . . . Average Slot Usage (%) 89 | . 94 88 100 86 Engine 9 | . 14 11 11 8 Leg 17 | . 28 22 22 13 Flight 2 | . . . . 3 Device 16 | . . 11 22 20 Storage 10 | . 14 11 11 9 Processor 12 | . 9 11 11 14 Energy Gun 11 | . 14 16 22 6 Ballistic Gun 2 | . 14 5 . . Ballistic Cannon 6 | . . . . 11 Naked Turns . | . . . . . Heaviest Build 29 | 11 16 26 26 29 Greatest Support 30 | 20 20 20 20 30 Greatest Overweight (x) 9 | . . 1 1 9 Average Overweight (x) . | . . . 1 1 Largest Inventory Capacity 10 | 8 10 10 10 10 Average Capacity 9 | 7 8 10 10 10 Most Carried 10 | 3 4 10 9 10 Average Carried 7 | 1 2 6 9 9 Final Capacity 10 | 8 10 10 10 10 Final Carried 9 | 1 4 9 9 8 Class Distribution -------------------- 96% | Mutant 3% | Scavenger-Mutant Dominant Class ---------------- Mutant | -10/Materials Mutant | -9/Materials Mutant | -9/Mines Mutant | -8/Materials Resources | -11 -10 -9 -9 -8 ----------- Run | Yrd Mat Mat Min Mat Matter Collected 758 | 116 110 151 19 362 Remotely . | . . . . . Salvage Created 1209 | . 153 362 46 648 Parts 60 | . 7 17 4 32 Haulers Intercepted 4 | . . 2 . 2 Recyclers Shooed 1 | . . . . 1 Parts Field Recycled . | . . . . . Retrieved Matter . | . . . . . Parts Self-Destructed . | . . . . . Prevented . | . . . . . Kills | -11 -10 -9 -9 -8 ------- Run | Yrd Mat Mat Min Mat Combat Hostiles Destroyed 34 | . 5 7 3 19 Guns 19 | . 5 7 2 5 Cannons 12 | . . . . 12 AOE 2 | . . . 1 1 Classes Destroyed 6 | . 2 3 . 1 Builder 1 | . . . . 1 Hauler 4 | . . 2 . 2 Watcher 3 | . . 1 . 2 Swarmer 16 | . 3 3 3 7 Grunt 17 | . 2 3 . 12 Duelist 1 | . . 1 . . Best Kill Streak 4 | . 3 3 3 4 Combat Bots Only 4 | . 3 3 3 4 Max Kills in Single Turn 2 | . 1 1 2 2 Gunslinging . | . . . . . Exploded 1 | . . . 1 1 Melee . | . . . . . Uniques/NPCs Destroyed . | . . . . . Combat | -11 -10 -9 -9 -8 -------- Run | Yrd Mat Mat Min Mat Hostile Shots Fired 212 | . 15 34 6 157 Missed 43 | . 2 7 3 31 Damage Taken 2462 | . 149 332 60 1921 Core 647 | . 36 39 16 556 Absorbed by Shields . | . . . . . Core Remaining (%) 90 | 100 85 . 86 . Volleys Fired 104 | . 10 29 3 62 Largest 2 | . 2 2 2 2 Hottest 96 | . 60 85 90 96 Shots Fired 206 | . 20 58 6 122 Gun 124 | . 20 58 6 40 Cannon 82 | . . . . 82 Launcher . | . . . . . Special . | . . . . . Kinetic 108 | . 10 16 . 82 Thermal 45 | . 10 35 . . Explosive . | . . . . . Electromagnetic 53 | . . 7 6 40 Robot Hit Streak 16 | . 7 16 6 14 Robot Miss Streak 5 | . 1 2 2 5 Penetration Max . | . . . . . Secondary Targets 1 | . . . . 1 Max Gunslinging Chain 1 | . . . . 1 Shots Hit Robots 150 | . 13 44 4 89 Core Hits 74 | . 8 18 3 45 Critical Kills . | . . . . . Critical Parts Destroyed . | . . . . . Critical Strikes 2 | . . . . 2 Blast 2 | . . . . 2 Melee Attacks . | . . . . . Impact . | . . . . . Slashing . | . . . . . Piercing . | . . . . . Sneak Attacks . | . . . . . Combat Hostiles . | . . . . . Follow-up Attacks . | . . . . . Damage Inflicted 3297 | . 157 559 78 2503 Guns 1434 | . 157 559 48 670 Cannons 1483 | . . . . 1483 Explosions 380 | . . . 30 350 Melee . | . . . . . Ramming . | . . . . . Kinetic 1700 | . 80 137 . 1483 Thermal 732 | . 77 275 30 350 Explosive . | . . . . . Electromagnetic 865 | . . 147 48 670 Impact . | . . . . . Slashing . | . . . . . Piercing . | . . . . . Highest Corruption 1 | . . . . 1 Average Corruption 1 | . . . . 1 Corruption Purged . | . . . . . Corruption Blocked . | . . . . . Overload Shots . | . . . . . Overflow Damage 125 | . . . . 125 Projectiles 21 | . . . . 21 Explosions 104 | . . . . 104 Melee . | . . . . . Knockbacks 13 | . . . . 13 Impact . | . . . . . Kinetic 12 | . . . . 12 Secondary 1 | . . . . 1 Self-Inflicted Damage 182 | . . . 32 150 Shots 4 | . . . 1 3 Rammed . | . . . . . Targets Rammed . | . . . . . Kicked . | . . . . . Crushed . | . . . . . Highest Temperature 197 | . 54 78 84 197 Average Temperature 57 | . 30 20 40 70 Received Heat Transfer 993 | . 66 36 . 891 Siege Activations . | . . . . . Robots Corrupted 1 | . . . . 1 Combat Hostiles 1 | . . . . 1 Parts Fried 4 | . . . . 4 Impact Corruptions . | . . . . . Robots Melted . | . . . . . Combat Hostiles . | . . . . . Parts Melted . | . . . . . Heat Transferred 1150 | . 175 625 50 300 Parts Sabotaged . | . . . . . Parts Stolen . | . . . . . Parts Stripped . | . . . . . Power Chain Reactions 4 | . . . 1 3 Alert | -11 -10 -9 -9 -8 ------- Run | Yrd Mat Mat Min Mat Peak Influence 265 | . 128 239 190 265 Initial 93 | . . 53 93 74 Average 150 | . 85 167 177 158 Maximum Alert Level 1 | . . 1 . 1 Low Security (%) 70 | 100 100 54 100 62 Level 1 29 | . . 45 . 37 Level 2 . | . . . . . Level 3 . | . . . . . Level 4 . | . . . . . Level 5 . | . . . . . High Security . | . . . . . Max Security . | . . . . . Squads Dispatched 5 | . 1 . . 4 Investigation 1 | . . . . 1 Extermination . | . . . . . Reinforcement 4 | . 1 . . 3 Assault . | . . . . . Garrison . | . . . . . Intercept . | . . . . . Searches Triggered . | . . . . . Construction Impeded 2 | . . . . 2 Haulers Reinforced . | . . . . . Active Scanning Responses . | . . . . . Cargo Convoy Interrupts . | . . . . . Stealth | -11 -10 -9 -9 -8 --------- Run | Yrd Mat Mat Min Mat Distress Signals 3 | . . 1 . 2 Communications Jammed . | . . . . . Distress Signals . | . . . . . Times Spotted 47 | . 6 8 3 30 Peak Tracking Total 4 | . 3 3 3 4 Tactical Retreats 2 | . . . . 2 Traps | -11 -10 -9 -9 -8 ------- Run | Yrd Mat Mat Min Mat Traps Triggered 1 | . . . . 1 Indirectly . | . . . . . Trap Hack Attempts . | . . . . . Triggered . | . . . . . Disarmed . | . . . . . Reprogrammed . | . . . . . Reused . | . . . . . Traps Extracted . | . . . . . Installed . | . . . . . Triggered . | . . . . . Machines | -11 -10 -9 -9 -8 ---------- Run | Yrd Mat Mat Min Mat Machines Disabled 2 | . . . 1 1 Max in Single Turn 1 | . . . 1 1 Machines Repaired . | . . . . . Machines Dismantled . | . . . . . Machines Sabotaged . | . . . . . Overloaded Fab Kills . | . . . . . Hacking | -11 -10 -9 -9 -8 --------- Run | Yrd Mat Mat Min Mat Machines Accessed 6 | . 2 . 1 3 Terminals 4 | . 1 . 1 2 Fabricators . | . . . . . Repair Stations . | . . . . . Recycling Units 1 | . 1 . . . Scanalyzers 1 | . . . . 1 Garrison Access . | . . . . . Total Hacks 19 | . 3 . 3 13 Successful 13 | . 2 . 1 10 Failed 6 | . 1 . 2 3 Catastrophic 1 | . . . . 1 Database Lockouts . | . . . . . Manual 9 | . 3 . 3 3 Terminals 9 | . 2 . 3 4 Fabricators . | . . . . . Repair Stations . | . . . . . Recycling Units 1 | . 1 . . . Scanalyzers 9 | . . . . 9 Garrison Access . | . . . . . Terminal Hacks 1 | . . . 1 . Branch Access Points 1 | . . . 1 . Fabricator Hacks . | . . . . . Repair Station Hacks . | . . . . . Recycling Unit Hacks . | . . . . . Scanalyzer 8 | . . . . 8 Insert Component 4 | . . . . 4 Analyze 4 | . . . . 4 Garrison Access Hacks . | . . . . . Unauthorized Hacks 4 | . 2 . . 2 Terminals 3 | . 1 . . 2 Botnet 3 | . 1 . . 2 Fabricators . | . . . . . Repair Stations . | . . . . . Recycling Units 1 | . 1 . . . Reject 1 | . 1 . . . Scanalyzers . | . . . . . Garrison Access . | . . . . . Data Cores Recovered . | . . . . . Used . | . . . . . Hacking Detections 5 | . 1 . 1 3 Full Trace Events 1 | . . . . 1 Feedback Events . | . . . . . Feedback Blocked . | . . . . . Robot Schematics Acquired . | . . . . . Robots Built . | . . . . . Authchips . | . . . . . Time . | . . . . . Total Robot Build Rating . | . . . . . Part Schematics Acquired 4 | . . . . 4 Parts Built . | . . . . . Authchips . | . . . . . Time . | . . . . . Total Part Build Rating . | . . . . . Parts Repaired . | . . . . . Time . | . . . . . Parts Recycled . | . . . . . Recycled Matter . | . . . . . Retrieved Matter . | . . . . . Retrieved Components . | . . . . . Parts Scanalyzed 4 | . . . . 4 Part Schematics Acquired 4 | . . . . 4 Parts Damaged 1 | . . . . 1 Bothacking | -11 -10 -9 -9 -8 ------------ Run | Yrd Mat Mat Min Mat Used RIF Installer . | . . . . . Robots Hacked . | . . . . . Non-combat . | . . . . . Combat . | . . . . . Robot Hacks Applied . | . . . . . Relay Couplers Released . | . . . . . Fabnet Peak Effective % . | . . . . . Robots Rewired . | . . . . . Allies Hacked . | . . . . . Hacks Repelled . | . . . . . Allies | -11 -10 -9 -9 -8 -------- Run | Yrd Mat Mat Min Mat Total Allies . | . . . . . Largest Group . | . . . . . Highest-Rated Group . | . . . . . Highest-Rated Ally . | . . . . . Total Orders . | . . . . . Ally Attacks . | . . . . . Total Damage . | . . . . . Kills . | . . . . . Allies Corrupted . | . . . . . Allies Melted . | . . . . . Intel | -11 -10 -9 -9 -8 ------- Run | Yrd Mat Mat Min Mat Robot Analysis Total . | . . . . . Derelict Logs Recovered . | . . . . . Drone Launches . | . . . . . Drone Recoveries . | . . . . . Exploration | -11 -10 -9 -9 -8 ------------- Run | Yrd Mat Mat Min Mat Turns Passed 1773 | 47 195 349 193 989 Spaces Moved 769 | 32 130 158 87 362 Core 17 | 5 . . . 12 Treads . | . . . . . Legs 696 | 27 130 158 87 294 Wheels . | . . . . . Hover 16 | . . . . 16 Flight 40 | . . . . 40 Fastest Speed 50 | 50 120 120 190 120 Average Speed 166 | 109 120 144 190 192 Slowest Speed 520 | 120 120 190 190 520 Overloaded Moves . | . . . . . Propulsion Burnouts . | . . . . . Robots Hopped . | . . . . . Cave-ins Triggered . | . . . . . Exploration Rate (%) 22 | 3 30 21 28 28 Regions Visited 4 Branch Regions 1 Pre-discovered Areas . | . . . . . Known Exits Taken . | . . . . . Unknown Exits Taken 4 | 1 1 1 1 . Scrap Searched . | . . . . . Spaces Dug . | . . . . . Terrain Destroyed 35 | . . . 4 31 Melee . | . . . . . Projectile 16 | . . . . 16 AOE 19 | . . . 4 15 Terrain Rammed . | . . . . . Walls Destroyed . | . . . . . Machines Disabled . | . . . . . Actions | -11 -10 -9 -9 -8 --------- Run | Yrd Mat Mat Min Mat Total 1061 | 44 148 224 109 536 Wait 92 | . . 10 20 62 Move 765 | 31 129 157 86 362 Hop . | . . . . . Pick Up 47 | 7 5 14 . 21 Fast Attach . | . . . . . Attach 25 | 6 1 3 . 15 Detach . | . . . . . Swap 12 | . 2 5 . 5 Drop 16 | . 1 6 . 9 Fire 104 | . 10 29 3 62 Melee . | . . . . . Ram . | . . . . . Kick . | . . . . . Crush . | . . . . . Escape Stasis . | . . . . . Rewire . | . . . . . Trap . | . . . . . Miscellaneous . | . . . . . Route ------- -11/Scrapyard -10/Materials -9/Materials -9/Mines -8/Materials History --------- Turn | Location | Event 28 | -11/Scrapyard | Discovered new exit (range 14) 48 | -11/Scrapyard | Entered Materials 193 | -10/Materials | Discovered new exit (range 8) 243 | -10/Materials | Entered another Materials area 243 | -9/Materials | Evolved 2 slots: Utility x2 306 | -9/Materials | Build established: Mutant 574 | -9/Materials | Discovered new exit (range 9) 592 | -9/Materials | Entered Mines 754 | -9/Mines | Discovered new exit (range 15) 785 | -9/Mines | Entered Materials 785 | -8/Materials | Evolved 2 slots: Propulsion x1, Utility x1 1513 | -8/Materials | Core integrity fell below 50% 1726 | -8/Materials | Core integrity fell below 20% 1771 | -8/Materials | Lost 5 parts (2p1n2u) 1774 | -8/Materials | Destroyed by G-47 Trooper with Particle Gun Last Messages --------------- 01719_ U-05 Engineer builds a Wall. 01719_ Acquired 1 matter. 01721_ Sensor Array destroyed. 01723_ Critical hit (Burn: +37). 01723_ U-05 Engineer builds a Wall. 01723_ Critical hit (Burn: +37). 01724_ Acquired 5 matter. 01729_ U-05 Engineer lays Concrete. 01734_ Critical hit (Burn: +37). 01739_ U-05 Engineer builds a Wall. 01740_ Targeting Computer destroyed. 01740_ R-06 Scavenger collects Corrupted Welding Torch. 01745_ R-06 Scavenger collects Corrupted Terrain Scan Processor. 01766_ M-13 Machinist repairs G-47 Trooper. 01768_ M-13 Machinist repairs Aluminum Leg. 01768_ Acquired 5 matter. 01770_ M-13 Machinist repairs Imp. Heat Sink. 01772_ M-13 Machinist repairs Lgt. Nuclear Core. Map ----- +----------------------------------------------------+ | ???????????????????????????????? #] = ###?## | | ????????????????????? ??????#? ? # ####?? | | ????????????????????????????? # """ #####? | | ?????????????????????? ?? ??+ ? # """"" ####?# | | ????????????????????????????# # """"" ###### | | ??????????????????????#??? # # """"" ###### | | ??????????????????????????? # # """ ## "" | | ??????????????????????? #? ??? # ##% "" | | ???????????????????? ?? ? # ######+#####% "" | | ??????????????????????? ? ########?## % +! | | ????????????????????? ??# ######?#?## %#[ | | ????????????????#??##??## ########### # | | ??????????????????????### r ########### ##### | | ??????????????????###?### #######?### ##### | | ????????????T???#???##### ########### =% ##?## | | ???????????????#???##?### #T######### *%##+##### | | ??????????? ??##??#?#### k ^ =!*%# ! # | | ??????????#???#??#?#?#### % [# # | | ?????????????##??#?##?###^ """""""^ % %# ] # | | ???????????? ########## ^^""""""" + "" # | | ?????????? ?? # ! # """"""" % # S"" # | | ????????? ?????#""" # u^ """"""" # "" # | | ????????? """?#""" ! # u """"""" #####+## | | ???????????""" #""" #% ! | | ????????# ??"" # + % % | | ????????? ?""? #""" #@ % % | | ????????#???? #""" # #####+################ | | ???????????"?"?#""" # ## % [########### | | ????????# "?? # # r## % = ########?## | | ?????????? ?""?########## ## #########?# | | ?????????? "?? ### ? ## ## """ """ ####?###### | | ??????????? ?#?# ?## ## """ """ ####?### | | ?????????#?###?##??? ? ## ## """ """ ######## T | | ????????????# ? ?#? # # #?###### | | ??????????#?? #?""" # # #?##???# | | ????????????? + ""? # ###############?## | | ????????????#? ??? "?" # gg ### ??#####?#????# "" | | ?????????????#??#? ? # ### #?#?####??#??# "" | | ?????????????? ??#?"?" ###m##### ?#####?#?##??# % | | ??????????????? ## ""? ?## #########?##?####### [ | | ?????????????????#?"""?#?# # ##???## ###+ | | ?????????????? ??# ??#?# # T #?###?# ] %% | | ??????????????? ??#?#???# # ###?### = | | ????????????? ?????##???##[# ! #?##??# | | ???????????????? #??????##=#= #?????# #### | | ???????????????????#??####=/ ##????## ##??? | | ????????????????##########[############### #??#? | | ????????? "![=%%[*[###????#= # #?#?? | | ????????????? "" ##########????#?# + #???? | | ??????????????????#????#####??#???#! # #??## | +----------------------------------------------------+ Best States ------------- Heat Dissipation 31 Coolant Potential 50 Energy Generation 14 Energy Capacity 280 Matter Stores 300 Matter Capacity 300 Sight Range 16 Robot Scan Range 14 Terrain Scan Range 16 Terrain Scan Density 110 Evasion (%) 55 Targeting Accuracy 5 Item Schematics ----------------- Sensor Array | -8/Materials | Scanalyzed Imp. Terrain Scan Processor | -8/Materials | Scanalyzed Adv. Beam Cannon | -8/Materials | Scanalyzed Aluminum Leg | -8/Materials | Scanalyzed Robot Schematics ------------------ None Fabricated ------------ Nothing Alien Tech Used ----------------- None Achievements -------------- None Challenges ------------ None Game ------ Seed DispersionRefineryBuckler Manual? 0 Play Time 00:15:49 Cumulative 20.2 hours Start 2024.03.31 @ 15:48:22 End 2024.03.31 @ 17:18:37 Sessions 3 Manual Loads 0 Difficulty Rogue Special Mode None Game No. 55 Rogue 53 Adventurer 2 Explorer 0 Win Type - Total 0 Types 0/0/0/0/0/0/0/0/0 Lore% 20 Gallery% 32 Achievement% 23 Wizard Run 0 Options --------- Layout 1 ASCII 0 Keyboard 0 Movement Arrows Keybinds 0 Fullscreen 2 Font 24/Smallcaps Map View 50x35 Zoom Use 0% Tactical HUD 1 Map Filters NONE Filters NONE Steam 1 RUN: 396ce6c6-a2ea-457a-a294-494d4b53c35a